fUSD/lending_fUSD_20260605
["ID","MTS","AMOUNT","RATE_DAILY","PERIOD"]
[424114777,1780601441000,-151.0,0.00016805,2]
[424114787,1780601441000,-300.0,0.00016904,2]
[424114779,1780601441000,-151.0,0.00016805,2]
[424114783,1780601441000,-151.0,0.00016902,2]
[424114781,1780601441000,-151.0,0.00016805,2]
[424114795,1780601441000,-500.0,0.00016904,2]
[424114798,1780601441000,-500.0,0.00016904,2]
[424114808,1780601441000,-765.01,0.00016904,2]
[424114800,1780601441000,-500.0,0.00016904,2]
[424114812,1780601441000,-765.01,0.00016904,2]
[424114765,1780601441000,-151.0,0.00016805,2]
[424114789,1780601441000,-785.92345545,0.00016904,2]
[424114767,1780601441000,-1541.829306,0.00016805,2]
[424114730,1780601441000,-222.9379748,0.00016438,2]
[424114752,1780601441000,-150.0,0.00016796,2]
[424114728,1780601441000,-150.0,0.0001639,2]
[424114724,1780601441000,-150.0,0.0001639,2]
[424114725,1780601441000,-150.0,0.0001639,2]
[424114726,1780601441000,-150.0,0.0001639,2]
[424114727,1780601441000,-150.0,0.0001639,2]
[424114734,1780601441000,-1541.829306,0.00016438,2]
[424114731,1780601441000,-3430.7,0.00016438,2]
[424114729,1780601441000,-297.0,0.0001639,2]
[424114733,1780601441000,-151.0,0.00016438,2]
[424114735,1780601441000,-1541.829306,0.00016438,2]
[424114740,1780601441000,-500.0,0.00016485,2]
[424114732,1780601441000,-282.68606009,0.00016438,2]
[424114736,1780601441000,-1541.829306,0.00016438,2]
[424114737,1780601441000,-1541.829306,0.00016438,2]
[424114739,1780601441000,-2037.53842104,0.00016447,2]
[424114738,1780601441000,-580.71,0.00016438,2]
[424114744,1780601441000,-553.1,0.000166,2]
[424114741,1780601441000,-6622.41867616,0.000165,2]
[424114745,1780601441000,-166.66,0.0001664,2]
[424114819,1780601441000,-765.01,0.00016904,2]
[424114746,1780601441000,-500.0,0.00016759,2]
[424114749,1780601441000,-150.0,0.00016796,2]
[424114742,1780601441000,-433.0,0.00016528,2]
[424114750,1780601441000,-150.0,0.00016796,2]
[424114748,1780601441000,-150.0,0.00016796,2]
[424114747,1780601441000,-150.0,0.00016796,2]
[424114751,1780601441000,-150.0,0.00016796,2]
[424114754,1780601441000,-177.0,0.00016796,2]
[424114814,1780601441000,-765.01,0.00016904,2]
[424114743,1780601441000,-215.73365239,0.00016568,2]
[424114802,1780601441000,-765.01,0.00016904,2]
[424114876,1780601441000,-500.0,0.00016904,2]
[424114878,1780601441000,-500.0,0.00016904,2]
[424114881,1780601441000,-500.0,0.00016904,2]
[424114884,1780601441000,-500.0,0.00016904,2]
[424114894,1780601441000,-500.0,0.00016904,2]
[424114896,1780601441000,-335.06901346,0.00016904,2]
[424114895,1780601441000,-500.0,0.00016904,2]
[424114898,1780601441000,-500.0,0.00016904,2]
[424114900,1780601441000,-150.0,0.00016904,2]
[424114904,1780601441000,-500.0,0.00016904,2]
[424114914,1780601441000,-500.0,0.00016904,2]
[424114902,1780601441000,-300.54314303,0.00016904,2]
[424114908,1780601441000,-500.0,0.00016904,2]
[424114912,1780601441000,-500.0,0.00016904,2]
[424114921,1780601441000,-282.99065593,0.00016904,2]
[424114910,1780601441000,-500.0,0.00016904,2]
[424114906,1780601441000,-500.0,0.00016904,2]
[424114916,1780601441000,-500.0,0.00016904,2]
[424114919,1780601441000,-500.0,0.00016904,2]
[424114923,1780601441000,-1094.28,0.00016904,2]
[424114925,1780601441000,-1094.28,0.00016904,2]
[424114927,1780601441000,-1094.28,0.00016904,2]
[424114929,1780601441000,-1094.28,0.00016904,2]
[424114931,1780601441000,-1094.28,0.00016904,2]
[424114933,1780601441000,-1094.28,0.00016904,2]
[424114935,1780601441000,-1094.28,0.00016904,2]
[424114937,1780601441000,-1094.28,0.00016904,2]
[424114893,1780601441000,-500.0,0.00016904,2]
[424114891,1780601441000,-183.57762355,0.00016904,2]
[424114804,1780601441000,-765.01,0.00016904,2]
[424114887,1780601441000,-500.0,0.00016904,2]
[424114889,1780601441000,-504.10854741,0.00016904,2]
[424114806,1780601441000,-765.01,0.00016904,2]
[424114817,1780601441000,-765.01,0.00016904,2]
[424114821,1780601441000,-765.01,0.00016904,2]
[424114823,1780601441000,-500.0,0.00016904,2]
[424114832,1780601441000,-500.0,0.00016904,2]
[424114834,1780601441000,-500.0,0.00016904,2]
[424114836,1780601441000,-479.57886491,0.00016904,2]
[424114838,1780601441000,-500.0,0.00016904,2]
[424114840,1780601441000,-500.0,0.00016904,2]
[424114830,1780601441000,-500.0,0.00016904,2]
[424114825,1780601441000,-500.0,0.00016904,2]
[424114848,1780601441000,-500.0,0.00016904,2]
[424114842,1780601441000,-500.0,0.00016904,2]
[424114828,1780601441000,-500.0,0.00016904,2]
[424114845,1780601441000,-500.0,0.00016904,2]
[424114846,1780601441000,-500.0,0.00016904,2]
[424114866,1780601441000,-321.90339299,0.00016904,2]
[424114864,1780601441000,-500.0,0.00016904,2]
[424114868,1780601441000,-500.0,0.00016904,2]
[424114862,1780601441000,-500.0,0.00016904,2]
[424114851,1780601441000,-500.0,0.00016904,2]
[424114872,1780601441000,-500.0,0.00016904,2]
[424114874,1780601441000,-500.0,0.00016904,2]
[424114857,1780601441000,-500.0,0.00016904,2]
[424114859,1780601441000,-500.0,0.00016904,2]
[424114853,1780601441000,-500.0,0.00016904,2]
[424114855,1780601441000,-500.0,0.00016904,2]
[424114870,1780601441000,-500.0,0.00016904,2]
[424115004,1780601442000,-500.0,0.00016904,2]
[424115008,1780601442000,-500.0,0.00016904,2]
[424115010,1780601442000,-500.0,0.00016904,2]
[424115007,1780601442000,-500.0,0.00016904,2]
[424115003,1780601442000,-500.0,0.00016904,2]
[424114999,1780601442000,-500.0,0.00016904,2]
[424115005,1780601442000,-500.0,0.00016904,2]
[424115001,1780601442000,-500.0,0.00016904,2]
[424115000,1780601442000,-500.0,0.00016904,2]
[424114998,1780601442000,-500.0,0.00016904,2]
[424115012,1780601442000,-253.88646351,0.00016905,7]
[424115002,1780601442000,-500.0,0.00016904,2]
[424115009,1780601442000,-500.0,0.00016904,2]
[424115017,1780601442000,-1541.829306,0.00016905,2]
[424115011,1780601442000,-500.0,0.00016904,2]
[424115025,1780601442000,-1381.14,0.00016983,2]
[424115014,1780601442000,-151.0,0.00016905,2]
[424115024,1780601442000,-166.66,0.00016963,2]
[424115015,1780601442000,-151.0,0.00016905,2]
[424115016,1780601442000,-1541.829306,0.00016905,2]
[424115013,1780601442000,-151.0,0.00016905,2]
[424115020,1780601442000,-151.0,0.00016905,2]
[424115019,1780601442000,-1541.829306,0.00016905,2]
[424115018,1780601442000,-1541.829306,0.00016905,2]
[424115022,1780601442000,-151.0,0.00016905,2]
[424115021,1780601442000,-154.930219,0.00016905,2]
[424114995,1780601442000,-500.0,0.00016904,2]
[424115006,1780601442000,-500.0,0.00016904,2]
[424114996,1780601442000,-500.0,0.00016904,2]
[424114956,1780601442000,-500.0,0.00016904,2]
[424114991,1780601442000,-500.0,0.00016904,2]
[424115023,1780601442000,-2000.0,0.00016931,2]
[424114939,1780601442000,-1094.28,0.00016904,2]
[424114941,1780601442000,-1094.28,0.00016904,2]
[424114945,1780601442000,-500.0,0.00016904,2]
[424114943,1780601442000,-500.0,0.00016904,2]
[424114949,1780601442000,-500.0,0.00016904,2]
[424114954,1780601442000,-500.0,0.00016904,2]
[424114947,1780601442000,-500.0,0.00016904,2]
[424114951,1780601442000,-500.0,0.00016904,2]
[424114962,1780601442000,-500.0,0.00016904,2]
[424114958,1780601442000,-500.0,0.00016904,2]
[424114960,1780601442000,-500.0,0.00016904,2]
[424114971,1780601442000,-500.0,0.00016904,2]
[424114994,1780601442000,-500.0,0.00016904,2]
[424114968,1780601442000,-500.0,0.00016904,2]
[424114964,1780601442000,-500.0,0.00016904,2]
[424114973,1780601442000,-500.0,0.00016904,2]
[424114975,1780601442000,-500.0,0.00016904,2]
[424114979,1780601442000,-500.0,0.00016904,2]
[424114977,1780601442000,-500.0,0.00016904,2]
[424114981,1780601442000,-500.0,0.00016904,2]
[424114983,1780601442000,-500.0,0.00016904,2]
[424114985,1780601442000,-500.0,0.00016904,2]
[424114986,1780601442000,-500.0,0.00016904,2]
[424114993,1780601442000,-500.0,0.00016904,2]
[424114997,1780601442000,-500.0,0.00016904,2]
[424114987,1780601442000,-500.0,0.00016904,2]
[424114989,1780601442000,-557.48314514,0.00016904,2]
[424114966,1780601442000,-267.8205537,0.00016904,2]
[424115026,1780601442000,-403.8,0.00016983,2]
[424115027,1780601442000,-730.95,0.00016983,2]
[424115028,1780601442000,-386.63,0.00016983,2]
[424115061,1780601442000,-500.0,0.00017114,2]
[424115062,1780601442000,-578.96,0.00017114,2]
[424115066,1780601442000,-947.51,0.00017114,2]
[424115065,1780601442000,-947.51,0.00017114,2]
[424115072,1780601442000,-500.0,0.00017115,2]
[424115064,1780601442000,-578.96,0.00017114,2]
[424115068,1780601442000,-500.0,0.00017115,2]
[424115063,1780601442000,-578.96,0.00017114,2]
[424115073,1780601442000,-500.0,0.00017115,2]
[424115067,1780601442000,-947.51,0.00017114,2]
[424115069,1780601442000,-500.0,0.00017115,2]
[424115074,1780601442000,-500.0,0.00017115,2]
[424115070,1780601442000,-500.0,0.00017115,2]
[424115059,1780601442000,-500.0,0.00017114,2]
[424115071,1780601442000,-500.0,0.00017115,2]
[424115077,1780601442000,-500.0,0.00017115,2]
[424115081,1780601442000,-239.79635647,0.00017252,2]
[424115079,1780601442000,-253.88646351,0.00017243,7]
[424115083,1780601442000,-500.0,0.00017318,2]
[424115086,1780601442000,-447.64,0.0001734,2]
[424115085,1780601442000,-890.95,0.0001734,2]
[424115087,1780601442000,-2000.0,0.00017393,2]
[424115089,1780601442000,-2000.0,0.00017393,2]
[424115091,1780601442000,-2000.0,0.00017393,2]
[424115093,1780601442000,-2000.0,0.00017393,2]
[424115095,1780601442000,-1274.0,0.00017393,2]
[424115094,1780601442000,-2000.0,0.00017393,2]
[424115097,1780601442000,-700.0,0.00017393,2]
[424115075,1780601442000,-500.0,0.00017115,2]
[424115060,1780601442000,-500.0,0.00017114,2]
[424115096,1780601442000,-700.0,0.00017393,2]
[424115054,1780601442000,-500.0,0.00017114,2]
[424115058,1780601442000,-500.0,0.00017114,2]
[424115035,1780601442000,-578.96,0.00017004,2]
[424115029,1780601442000,-578.96,0.00017004,2]
[424115037,1780601442000,-578.96,0.00017004,2]
[424115031,1780601442000,-578.96,0.00017004,2]
[424115032,1780601442000,-578.96,0.00017004,2]
[424115030,1780601442000,-578.96,0.00017004,2]
[424115033,1780601442000,-578.96,0.00017004,2]
[424115034,1780601442000,-578.96,0.00017004,2]
[424115039,1780601442000,-947.51,0.00017004,2]
[424115046,1780601442000,-947.51,0.00017004,2]
[424115045,1780601442000,-947.51,0.00017004,2]
[424115047,1780601442000,-947.51,0.00017004,2]
[424115043,1780601442000,-947.51,0.00017004,2]
[424115036,1780601442000,-578.96,0.00017004,2]
[424115042,1780601442000,-947.51,0.00017004,2]
[424115038,1780601442000,-578.96,0.00017004,2]
[424115057,1780601442000,-407.36354149,0.00017114,2]
[424115052,1780601442000,-947.51,0.00017104,2]
[424115056,1780601442000,-500.0,0.00017114,2]
[424115051,1780601442000,-578.96,0.00017104,2]
[424115055,1780601442000,-500.0,0.00017114,2]
[424115053,1780601442000,-500.0,0.00017114,2]
[424115041,1780601442000,-947.51,0.00017004,2]
[424115049,1780601442000,-1500.0,0.00017017,2]
[424115048,1780601442000,-947.51,0.00017004,2]
[424115044,1780601442000,-947.51,0.00017004,2]
[424115040,1780601442000,-947.51,0.00017004,2]
[424115050,1780601442000,-621.27703967,0.00017033,2]
[424115142,1780601443000,-187.729829,0.00019178,2]
[424115149,1780601443000,-240.712995,0.00019178,2]
[424115143,1780601443000,-187.729829,0.00019178,2]
[424115140,1780601443000,-187.729829,0.00019178,2]
[424115139,1780601443000,-187.729829,0.00019178,2]
[424115132,1780601443000,-153.36591786,0.00019,2]
[424115137,1780601443000,-187.729829,0.00019178,2]
[424115135,1780601443000,-187.729829,0.00019178,2]
[424115133,1780601443000,-187.729829,0.00019178,2]
[424115130,1780601443000,-4190.0,0.00019,2]
[424115131,1780601443000,-788.0,0.00019,2]
[424115141,1780601443000,-187.729829,0.00019178,2]
[424115144,1780601443000,-187.729829,0.00019178,2]
[424115153,1780601443000,-240.712995,0.00019178,2]
[424115147,1780601443000,-240.712995,0.00019178,2]
[424115146,1780601443000,-187.729829,0.00019178,2]
[424115151,1780601443000,-240.712995,0.00019178,2]
[424115159,1780601443000,-240.712995,0.00019178,2]
[424115155,1780601443000,-240.712995,0.00019178,2]
[424115161,1780601443000,-240.712995,0.00019178,2]
[424115157,1780601443000,-240.712995,0.00019178,2]
[424115163,1780601443000,-240.712995,0.00019178,2]
[424115167,1780601443000,-240.712995,0.00019178,2]
[424115168,1780601443000,-240.712995,0.00019178,2]
[424115170,1780601443000,-151.0,0.00019178,2]
[424115126,1780601443000,-500.0,0.00018568,2]
[424115165,1780601443000,-240.712995,0.00019178,2]
[424115145,1780601443000,-187.729829,0.00019178,2]
[424115129,1780601443000,-165.7,0.00018966,2]
[424115118,1780601443000,-641.88680384,0.00018296,2]
[424115127,1780601443000,-1672.7364795,0.00018661,2]
[424115169,1780601443000,-151.0,0.00019178,2]
[424115100,1780601443000,-468.0,0.00017393,2]
[424115101,1780601443000,-294.99004776,0.00017483,2]
[424115102,1780601443000,-1555.5,0.00017565,2]
[424115104,1780601443000,-299.774811,0.00017728,2]
[424115103,1780601443000,-165.7,0.00017623,2]
[424115099,1780601443000,-700.0,0.00017393,2]
[424115105,1780601443000,-253.88646351,0.0001775,7]
[424115107,1780601443000,-2435.69,0.00017755,2]
[424115108,1780601443000,-673.32287189,0.00017825,2]
[424115109,1780601443000,-396.4151973,0.00017825,2]
[424115111,1780601443000,-152.36982602,0.00017971,2]
[424115110,1780601443000,-736.0,0.00017834,2]
[424115114,1780601443000,-371.60373393,0.00018,3]
[424115122,1780601443000,-3430.7,0.0001841,2]
[424115120,1780601443000,-578.96,0.00018355,2]
[424115112,1780601443000,-102887.06436542,0.00018,2]
[424115117,1780601443000,-500.0,0.00018296,2]
[424115119,1780601443000,-553.1,0.000183,2]
[424115121,1780601443000,-947.51,0.00018355,2]
[424115113,1780601443000,-458.38696847,0.00018,2]
[424115115,1780601443000,-1613.0535,0.00018113,2]
[424115116,1780601443000,-253.88646351,0.00018257,7]
[424115124,1780601443000,-277.75388502,0.00018532,2]
[424115134,1780601443000,-187.729829,0.00019178,2]
[424115125,1780601443000,-198.20759865,0.00018565,2]
[424115123,1780601443000,-150.0,0.00018532,2]
[424115128,1780601443000,-253.88646352,0.00018934,7]
[424115171,1780601443000,-151.0,0.00019178,2]
[424115233,1780601443000,-4999.99,0.00020951,2]
[424115173,1780601443000,-151.0,0.00019178,2]
[424115204,1780601443000,-947.51,0.00020004,2]
[424115197,1780601443000,-25968.72912368,0.0002,2]
[424115202,1780601443000,-2000.0,0.0002,7]
[424115220,1780601443000,-235.66,0.00020951,2]
[424115210,1780601443000,-1865.36488656,0.00020305,2]
[424115212,1780601443000,-3430.7,0.00020381,2]
[424115209,1780601443000,-662.634281,0.00020153,2]
[424115211,1780601443000,-1280.88388877,0.00020305,2]
[424115215,1780601443000,-553.1,0.000206,2]
[424115214,1780601443000,-21421.6,0.00020548,2]
[424115213,1780601443000,-327.76552219,0.00020537,2]
[424115216,1780601443000,-23011.3161902,0.000207,2]
[424115217,1780601443000,-1934.38338736,0.00020853,2]
[424115219,1780601443000,-1789.0,0.000209,7]
[424115222,1780601443000,-819.09,0.00020951,2]
[424115230,1780601443000,-9999.99,0.00020951,2]
[424115228,1780601443000,-9999.99,0.00020951,2]
[424115231,1780601443000,-1103.97,0.00020951,2]
[424115224,1780601443000,-24999.99,0.00020951,2]
[424115226,1780601443000,-38502.23,0.00020951,2]
[424115227,1780601443000,-3750.42,0.00020951,2]
[424115225,1780601443000,-1581.83,0.00020951,2]
[424115221,1780601443000,-1631.69,0.00020951,2]
[424115223,1780601443000,-1198.01,0.00020951,2]
[424115232,1780601443000,-36722.21,0.00020951,2]
[424115229,1780601443000,-353.63,0.00020951,2]
[424115172,1780601443000,-151.0,0.00019178,2]
[424115206,1780601443000,-150.0,0.0002013,2]
[424115207,1780601443000,-160.0,0.00020153,2]
[424115218,1780601443000,-1328.27659266,0.00020853,2]
[424115201,1780601443000,-5694.07,0.0002,2]
[424115174,1780601443000,-151.0,0.00019178,2]
[424115208,1780601443000,-411.31714,0.00020153,2]
[424115175,1780601443000,-151.0,0.00019178,2]
[424115176,1780601443000,-151.0,0.00019178,2]
[424115181,1780601443000,-151.0,0.00019178,2]
[424115178,1780601443000,-151.0,0.00019178,2]
[424115180,1780601443000,-151.0,0.00019178,2]
[424115177,1780601443000,-151.0,0.00019178,2]
[424115182,1780601443000,-151.0,0.00019178,2]
[424115184,1780601443000,-250.0,0.00019295,2]
[424115195,1780601443000,-375.98027213,0.000199,2]
[424115183,1780601443000,-1734.62772924,0.00019209,2]
[424115194,1780601443000,-1235.18214925,0.00019757,2]
[424115187,1780601443000,-1068.11,0.00019726,2]
[424115179,1780601443000,-151.0,0.00019178,2]
[424115205,1780601443000,-328.686454,0.00020053,2]
[424115200,1780601443000,-1149.0,0.0002,2]
[424115186,1780601443000,-1030.0,0.00019726,2]
[424115203,1780601443000,-578.96,0.00020004,2]
[424115199,1780601443000,-861.507014,0.0002,2]
[424115198,1780601443000,-26824.11548599,0.0002,2]
[424115188,1780601443000,-1107.63007,0.00019726,2]
[424115196,1780601443000,-168.638858,0.00019953,2]
[424115191,1780601443000,-2018.80050238,0.0001974,2]
[424115192,1780601443000,-254.981007,0.0001975,2]
[424115193,1780601443000,-1798.80895522,0.00019757,2]
[424115189,1780601443000,-1148.61238259,0.00019726,2]
[424115185,1780601443000,-155.14,0.00019726,2]
[424115190,1780601443000,-1191.11104074,0.00019726,2]
[424115276,1780601444000,-852.5031962,0.0002146,2]
[424115291,1780601444000,-852.5031962,0.00021559,2]
[424115289,1780601444000,-852.5031962,0.00021548,2]
[424115287,1780601444000,-852.5031962,0.00021507,2]
[424115282,1780601444000,-852.5031962,0.00021498,2]
[424115278,1780601444000,-852.5031962,0.00021476,2]
[424115262,1780601444000,-12581.07,0.00021087,2]
[424115284,1780601444000,-58462.28141324,0.000215,2]
[424115274,1780601444000,-947.51,0.00021446,2]
[424115269,1780601444000,-2005.9555727,0.00021401,2]
[424115267,1780601444000,-852.5031962,0.00021261,2]
[424115295,1780601444000,-579.0,0.00021644,2]
[424115280,1780601444000,-852.5031962,0.00021491,2]
[424115297,1780601444000,-579.0,0.00021644,2]
[424115325,1780601444000,-579.0,0.00021644,2]
[424115299,1780601444000,-150.0,0.00021644,2]
[424115301,1780601444000,-150.0,0.00021644,2]
[424115303,1780601444000,-579.0,0.00021644,2]
[424115305,1780601444000,-500.0,0.00021644,2]
[424115309,1780601444000,-579.0,0.00021644,2]
[424115307,1780601444000,-150.0,0.00021644,2]
[424115311,1780601444000,-216.05485521,0.00021644,2]
[424115315,1780601444000,-500.0,0.00021644,2]
[424115313,1780601444000,-579.0,0.00021644,2]
[424115319,1780601444000,-500.0,0.00021644,2]
[424115317,1780601444000,-579.0,0.00021644,2]
[424115321,1780601444000,-579.0,0.00021644,2]
[424115265,1780601444000,-852.5031962,0.00021236,2]
[424115293,1780601444000,-852.5031962,0.00021591,2]
[424115263,1780601444000,-852.5031962,0.00021202,2]
[424115234,1780601444000,-299.99,0.00020951,7]
[424115268,1780601444000,-852.5031962,0.00021399,2]
[424115323,1780601444000,-410.7767144,0.00021644,2]
[424115246,1780601444000,-10154.61,0.00020951,2]
[424115245,1780601444000,-629.02,0.00020951,2]
[424115236,1780601444000,-7063.33,0.00020951,2]
[424115244,1780601444000,-150.99,0.00020951,2]
[424115247,1780601444000,-499.99,0.00020951,2]
[424115235,1780601444000,-2272.94,0.00020951,2]
[424115238,1780601444000,-999.99,0.00020951,2]
[424115240,1780601444000,-521.43,0.00020951,2]
[424115243,1780601444000,-9999.99,0.00020951,2]
[424115242,1780601444000,-9999.99,0.00020951,2]
[424115248,1780601444000,-734.0,0.00021,2]
[424115250,1780601444000,-13923.1683264,0.00021039,2]
[424115252,1780601444000,-240.712995,0.00021039,2]
[424115249,1780601444000,-861.507014,0.00021,2]
[424115251,1780601444000,-2103506.7638458,0.00021039,2]
[424115256,1780601444000,-151.0,0.00021039,2]
[424115258,1780601444000,-151.0,0.00021039,2]
[424115254,1780601444000,-240.712995,0.00021039,2]
[424115255,1780601444000,-240.712995,0.00021039,2]
[424115259,1780601444000,-151.0,0.00021039,2]
[424115257,1780601444000,-151.0,0.00021039,2]
[424115253,1780601444000,-240.712995,0.00021039,2]
[424115261,1780601444000,-187.114572,0.00021039,2]
[424115271,1780601444000,-852.5031962,0.00021408,2]
[424115272,1780601444000,-578.96,0.00021446,2]
[424115260,1780601444000,-156.494329,0.00021039,2]
[424115266,1780601444000,-852.5031962,0.00021238,2]
[424115264,1780601444000,-852.5031962,0.00021226,2]
[424115270,1780601444000,-1377.42282658,0.00021401,2]
[424115327,1780601444000,-579.0,0.00021644,2]
[424115333,1780601444000,-579.0,0.00021644,2]
[424115330,1780601444000,-579.0,0.00021644,2]
[424115403,1780601444000,-5000.0,0.00021918,2]
[424115406,1780601444000,-852.5031962,0.00021922,2]
[424115408,1780601444000,-852.5031962,0.00021931,2]
[424115404,1780601444000,-200.0,0.00021918,2]
[424115412,1780601444000,-765.76,0.00021946,2]
[424115414,1780601444000,-200.0,0.00021949,2]
[424115416,1780601444000,-151.0,0.00021949,2]
[424115418,1780601444000,-578.20924308,0.00021949,2]
[424115410,1780601444000,-852.5031962,0.00021937,2]
[424115424,1780601444000,-151.0,0.00021949,2]
[424115420,1780601444000,-151.0,0.00021949,2]
[424115422,1780601444000,-151.0,0.00021949,2]
[424115428,1780601444000,-151.0,0.00021949,2]
[424115432,1780601444000,-151.0,0.00021949,2]
[424115435,1780601444000,-2080.17592889,0.00021949,2]
[424115430,1780601444000,-151.0,0.00021949,2]
[424115437,1780601444000,-200.0,0.00021949,2]
[424115441,1780601444000,-151.0,0.00021949,2]
[424115449,1780601444000,-151.0,0.00021949,2]
[424115439,1780601444000,-151.0,0.00021949,2]
[424115451,1780601444000,-151.0,0.00021949,2]
[424115457,1780601444000,-151.0,0.00021949,2]
[424115453,1780601444000,-151.0,0.00021949,2]
[424115445,1780601444000,-151.0,0.00021949,2]
[424115443,1780601444000,-721.12765534,0.00021949,2]
[424115455,1780601444000,-1428.38747117,0.00021949,2]
[424115459,1780601444000,-151.0,0.00021949,2]
[424115447,1780601444000,-500.0,0.00021949,2]
[424115331,1780601444000,-579.0,0.00021644,2]
[424115399,1780601444000,-151.0,0.00021918,2]
[424115401,1780601444000,-151.0,0.00021918,2]
[424115426,1780601444000,-209.40437684,0.00021949,2]
[424115395,1780601444000,-852.5031962,0.00021822,2]
[424115461,1780601444000,-174.61919141,0.00021949,2]
[424115396,1780601444000,-682.0,0.00021878,2]
[424115336,1780601444000,-579.0,0.00021644,2]
[424115338,1780601444000,-579.0,0.00021644,2]
[424115340,1780601444000,-579.0,0.00021644,2]
[424115344,1780601444000,-150.0,0.00021644,2]
[424115342,1780601444000,-579.0,0.00021644,2]
[424115347,1780601444000,-579.0,0.00021644,2]
[424115349,1780601444000,-170.36532537,0.00021644,2]
[424115354,1780601444000,-579.0,0.00021644,2]
[424115360,1780601444000,-579.0,0.00021644,2]
[424115362,1780601444000,-579.0,0.00021644,2]
[424115366,1780601444000,-852.5031962,0.00021679,2]
[424115356,1780601444000,-579.0,0.00021644,2]
[424115358,1780601444000,-579.0,0.00021644,2]
[424115352,1780601444000,-579.0,0.00021644,2]
[424115368,1780601444000,-852.5031962,0.00021692,2]
[424115390,1780601444000,-852.5031962,0.00021792,2]
[424115364,1780601444000,-592.3457132,0.00021644,2]
[424115388,1780601444000,-852.5031962,0.00021759,2]
[424115386,1780601444000,-852.5031962,0.00021758,2]
[424115384,1780601444000,-7149.5876628,0.00021757,2]
[424115382,1780601444000,-150.0,0.00021757,2]
[424115378,1780601444000,-150.0,0.00021757,2]
[424115392,1780601444000,-852.5031962,0.00021819,2]
[424115373,1780601444000,-5694.07,0.00021715,2]
[424115380,1780601444000,-11736.59786021,0.00021757,2]
[424115376,1780601444000,-9999.99,0.00021757,2]
[424115374,1780601444000,-852.5031962,0.00021743,2]
[424115370,1780601444000,-852.5031962,0.00021704,2]
[424115549,1780601445000,-852.5031962,0.0002234,2]
[424115555,1780601445000,-1541.829306,0.0002234,2]
[424115557,1780601445000,-1541.829306,0.0002234,2]
[424115551,1780601445000,-1541.829306,0.0002234,2]
[424115530,1780601445000,-852.5031962,0.000222,2]
[424115559,1780601445000,-187.729829,0.0002234,2]
[424115536,1780601445000,-151.0,0.00022224,2]
[424115538,1780601445000,-462.48471465,0.00022234,2]
[424115534,1780601445000,-200.0,0.0002221,2]
[424115532,1780601445000,-553.1,0.000222,7]
[424115528,1780601445000,-852.5031962,0.00022198,2]
[424115542,1780601445000,-852.5031962,0.00022299,2]
[424115553,1780601445000,-1541.829306,0.0002234,2]
[424115561,1780601445000,-187.729829,0.0002234,2]
[424115576,1780601445000,-852.5031962,0.00022432,2]
[424115547,1780601445000,-151.0,0.00022334,2]
[424115544,1780601445000,-852.5031962,0.00022317,2]
[424115565,1780601445000,-187.729829,0.0002234,2]
[424115567,1780601445000,-3430.7,0.00022353,2]
[424115563,1780601445000,-187.729829,0.0002234,2]